bitfinex/quotes_ETHUSD_20250602
["timestamp","ask_amount","ask_price","bid_price","bid_amount"]
[1748845068478,2.84600359,2485.4,2485.3,2.41419546]
[1748845069670,2.84600359,2485.6,2485.4,2.41406918]
[1748845071010,0.7589,2485.4,2485.1,0.01]
[1748845071180,2.84600359,2485.3,2485.2,10.41421905]
[1748845071887,0.7589,2485.4,2485.3,2.41419546]
[1748845072071,0.7589,2485.6,2485.4,2.41409833]
[1748845072275,2.84600359,2485.5,2485.4,2.41409833]
[1748845073600,2.84600359,2485.5,2485.3,2.41412825]
[1748845073787,2.84600359,2485.5,2485.3,2.41419546]
[1748845074095,2.84600359,2485.5,2485.4,2.41409833]
[1748845074510,2.84600359,2485.5,2485.3,2.41414869]
[1748845075708,2.84600359,2485.5,2485.4,2.41409833]
[1748845076713,2.84600359,2485.5,2485.3,2.41414554]
[1748845077408,2.84600359,2485.5,2485.4,2.41409833]
[1748845078388,2.41343952,2486.1,2485.3,8.7544]
[1748845078389,0.8021,2486.1,2485.3,8.7544]
[1748845078714,2.84600359,2485.9,2485.5,2.41391367]
[1748845078889,2.84600359,2485.9,2485.6,2.41383181]
[1748845079091,2.84600359,2485.9,2485.7,2.4137969]
[1748845080314,0.8021,2486.1,2485.8,2.41370987]
[1748845080315,3.64810359,2486.1,2485.8,2.41370987]
[1748845080514,0.38349262,2486.0,2485.8,2.41370987]
[1748845080809,3.64810359,2486.1,2485.7,2.41375934]
[1748845081044,0.3834844,2486.0,2485.7,2.41375934]
[1748845081216,4.42941395,2486.1,2485.7,2.41375934]
[1748845081396,0.7580296,2486.0,2485.7,2.41375934]
[1748845081588,4.42941395,2486.1,2485.7,2.41375934]
[1748845081805,0.75802945,2486.0,2485.8,2.41369717]
[1748845082115,4.42941395,2486.1,2485.8,2.41369717]
[1748845082287,0.38349791,2486.0,2485.8,2.41369717]
[1748845082592,4.42941395,2486.1,2485.8,2.41369717]
[1748845082790,0.75807625,2486.0,2485.5,2.41397425]
[1748845082977,0.75807625,2486.0,2485.3,0.7544]
[1748845082978,2.84600359,2485.9,2485.8,2.41370987]
[1748845084829,2.84600359,2485.9,2485.3,0.7544]
[1748845085129,0.825,2485.8,2485.7,2.41376338]
[1748845085332,2.84600359,2485.7,2485.6,2.41390408]
[1748845085710,3.22063004,2485.7,2485.6,2.41390408]
[1748845085911,2.84600359,2485.7,2485.6,2.41390408]
[1748845086725,3.60419055,2485.7,2485.6,2.41390408]
[1748845087033,4.51862705,2485.7,2485.6,2.41390408]
[1748845087200,4.51862913,2485.7,2485.6,2.41390408]
[1748845087528,4.13505354,2485.7,2485.6,2.41390408]
[1748845087731,3.76042265,2485.7,2485.6,2.41390408]
[1748845088034,4.13509588,2485.7,2485.6,2.41390408]
[1748845088230,4.13509828,2485.7,2485.6,2.41390408]
[1748845088436,4.13509765,2485.7,2485.6,2.41390408]
[1748845088635,4.13509872,2485.7,2485.6,2.41390408]
[1748845088838,4.13512134,2485.7,2485.6,2.41390408]
[1748845089136,1.375,2485.8,2485.7,2.41380697]
[1748845089137,0.825,2485.8,2485.7,2.41380697]
[1748845089333,1.58346627,2485.8,2485.7,2.41380697]
[1748845089509,1.20876058,2485.8,2485.7,2.41380697]
[1748845090436,1.58345095,2485.8,2485.7,2.41380697]
[1748845090641,0.825,2485.8,2485.7,2.41380697]
[1748845090828,1.20889875,2485.8,2485.7,2.41380697]
[1748845091003,1.58376731,2485.8,2485.7,2.41380697]
[1748845091505,2.4432444,2485.8,2485.6,2.41381307]
[1748845091722,3.60478233,2485.7,2485.6,2.41381307]
[1748845091922,3.22990234,2485.7,2485.6,2.41381307]
[1748845092116,3.60478938,2485.7,2485.6,2.41381307]
[1748845092637,0.38389875,2485.7,2485.6,2.41381307]
[1748845093209,1.3832,2486.0,2485.9,2.41361277]
[1748845093408,2.10451607,2486.0,2485.9,2.41361277]
[1748845094640,2.10451607,2486.0,2485.4,3.21357154]
[1748845094811,0.38390837,2485.9,2485.8,2.41361399]
[1748845095012,0.38395144,2485.9,2485.8,2.41361399]
[1748845095641,3.22995503,2485.9,2485.8,2.41361399]
[1748845095845,4.51645795,2485.9,2485.8,2.41361399]
[1748845096733,4.1415113,2485.9,2485.8,2.41361399]
[1748845097042,4.51649153,2485.9,2485.8,2.41361399]
[1748845097217,4.51656067,2485.9,2485.8,2.41361399]
[1748845097419,4.1415113,2485.9,2485.8,2.41361399]
[1748845097620,1.67056135,2485.9,2485.8,2.41361399]
[1748845097941,0.75900385,2485.9,2485.8,2.41361399]
[1748845098541,0.75900594,2485.9,2485.8,2.41361399]
[1748845098846,0.75900934,2485.9,2485.8,2.41361399]
[1748845099012,0.7590096,2485.9,2485.8,2.41361399]
[1748845099350,0.75915786,2485.9,2485.8,2.41361399]
[1748845100043,0.75917064,2485.9,2485.8,2.41361399]
[1748845100211,0.75917445,2485.9,2485.8,2.41361399]
[1748845100415,0.38409082,2485.9,2485.8,2.41361399]
[1748845100617,0.7591709,2485.9,2485.8,2.41361399]
[1748845100817,0.38409082,2485.9,2485.8,2.41361399]
[1748845101066,0.75917277,2485.9,2485.8,2.41361399]
[1748845101252,0.75917266,2485.9,2485.8,2.41361399]
[1748845101419,0.75918643,2485.9,2485.8,2.41361399]
[1748845101736,0.37509561,2485.9,2485.8,2.41361399]
[1748845101939,3.60280359,2486.2,2485.9,2.41359109]
[1748845102223,1.63910707,2486.1,2485.9,2.41359109]
[1748845102423,0.38416853,2486.0,2485.9,2.41359109]
[1748845102623,0.75931779,2486.0,2485.9,2.41359109]
[1748845103445,0.75925613,2486.0,2485.9,2.41359109]
[1748845103752,0.75920088,2486.0,2485.9,2.41359109]
[1748845103953,0.75917084,2486.0,2485.9,2.41359109]
[1748845104149,0.75917154,2486.0,2485.9,2.41359109]
[1748845104353,0.75917007,2486.0,2485.9,2.41359109]
[1748845105048,0.38410878,2486.0,2485.9,2.41359109]
[1748845105247,0.75914759,2486.0,2485.9,2.41359109]
[1748845105447,0.75915037,2486.0,2485.9,2.41359109]
[1748845105619,0.75914994,2486.0,2485.9,2.41359109]
[1748845105816,0.75914755,2486.0,2485.8,2.41366073]
[1748845106058,0.37503877,2485.9,2485.8,2.41366073]
[1748845106554,0.37502024,2485.9,2485.8,2.41366073]
[1748845106925,0.37497589,2485.9,2485.8,2.41366073]
[1748845107136,0.55,2486.1,2485.8,2.41366073]
[1748845107323,0.75900016,2486.0,2485.8,2.41366073]
[1748845107522,0.55,2486.1,2485.8,2.41366073]
[1748845107746,0.75900417,2486.0,2485.8,2.41366073]
[1748845107956,0.37499653,2485.9,2485.8,2.41366073]
[1748845108459,1.19290064,2486.1,2486.0,2.41351568]
[1748845108655,1.3091153,2486.1,2486.0,2.41351568]
[1748845108858,1.30910529,2486.1,2486.0,2.41351568]
[1748845109024,0.38406653,2486.1,2486.0,2.41351568]
[1748845109224,0.55,2486.4,2486.1,2.41335539]
[1748845109427,0.55,2486.2,2486.1,2.41335539]
[1748845109623,0.92510597,2486.2,2486.1,2.41335539]
[1748845109858,0.55,2486.2,2486.0,2.41348732]
[1748845110648,0.55,2486.2,2486.1,2.4134186]
[1748845113865,0.7567,2486.5,2486.4,2.41312741]
[1748845114073,0.75847733,2486.5,2486.4,2.41312741]
[1748845114363,3.64700359,2486.7,2486.5,2.41297468]
[1748845114662,0.75839255,2486.6,2486.5,2.41297468]
[1748845115230,0.37456542,2486.6,2486.5,2.41297468]
[1748845115457,0.38356941,2486.6,2486.5,2.41297468]
[1748845115658,4.42810395,2486.7,2486.5,2.41297468]
[1748845115861,0.37458655,2486.6,2486.5,2.41297468]
[1748845116163,0.37458655,2486.6,2486.0,8.0]
[1748845116164,1.4138528,2486.6,2486.0,8.0]
[1748845116366,2.84600359,2486.4,2486.3,2.41322447]
[1748845116767,3.87627264,2486.6,2486.4,2.41308511]
[1748845116979,3.39600359,2486.6,2486.4,2.41307395]
[1748845118434,2.4130336,2486.5,2486.1,0.7807]
[1748845118639,2.84600359,2486.2,2486.0,2.41344882]
[1748845118869,2.84600359,2486.2,2486.1,2.4134186]
[1748845119077,0.55,2486.4,2486.2,2.41322635]
[1748845119258,0.7939,2486.5,2486.3,2.4131678]
[1748845119459,0.37458813,2486.4,2486.1,2.41341431]
[1748845119663,0.7939,2486.5,2486.1,2.41341431]
[1748845119871,0.374591,2486.4,2486.1,2.41341431]
[1748845120067,0.7939,2486.5,2486.1,2.41341431]
[1748845120447,0.37460626,2486.4,2486.1,2.41341431]
[1748845120653,0.7939,2486.5,2486.1,2.41341431]
[1748845120851,0.37462159,2486.4,2486.1,2.41341431]
[1748845121053,0.7939,2486.5,2486.1,2.41341431]
[1748845121484,0.37460407,2486.4,2486.1,2.41341431]
[1748845121780,0.7939,2486.5,2486.1,2.41341431]
[1748845122075,0.38358633,2486.4,2486.1,2.41341431]
[1748845122246,0.7939,2486.5,2486.1,2.41341431]
[1748845123582,2.84600359,2486.6,2486.0,3.19151239]
[1748845123783,0.75833558,2486.5,2486.2,2.41324281]
[1748845124086,0.55,2486.6,2486.0,0.778]
[1748845124267,2.84600359,2486.8,2486.3,3.23056418]
[1748845124448,0.75835518,2486.7,2486.3,3.23056418]
[1748845124639,0.75835518,2486.6,2486.3,3.23056418]
[1748845124843,2.84600359,2486.8,2486.3,3.23056418]
[1748845125039,0.38366128,2486.7,2486.3,3.23056418]
[1748845125345,0.75834546,2486.6,2486.3,3.23056418]
[1748845125542,6.62241638,2486.8,2486.3,3.23056418]
[1748845125739,2.84600359,2486.6,2486.3,3.23056418]
[1748845126898,2.84600359,2486.6,2486.3,0.8174]
[1748845127071,2.84600359,2486.6,2486.4,2.41310472]
[1748845127278,2.84600359,2486.6,2486.3,3.23058077]
[1748845131064,2.84600359,2486.6,2486.3,0.8174]
[1748845131465,2.84600359,2486.8,2486.4,2.41306585]
[1748845131693,0.75879744,2486.7,2486.4,2.41306585]
[1748845131892,2.84600359,2486.8,2486.4,2.41306585]
[1748845132078,0.75881974,2486.7,2486.4,2.41306585]
[1748845132283,2.84600359,2486.8,2486.4,2.41306585]
[1748845132478,0.75882614,2486.7,2486.4,2.41306585]
[1748845132683,2.84600359,2486.8,2486.4,2.41306585]
[1748845133004,0.38393135,2486.7,2486.4,2.41306585]
[1748845133190,2.84600359,2486.8,2486.4,2.41306585]
[1748845133368,0.75892834,2486.7,2486.4,2.41306585]
[1748845133569,2.84600359,2486.8,2486.4,2.41306585]
[1748845133806,0.75893366,2486.7,2486.4,2.41306585]
[1748845134009,2.84600359,2486.8,2486.4,2.41306585]
[1748845134307,0.7590031,2486.7,2486.4,2.41306585]
[1748845134518,2.84600359,2486.8,2486.4,2.41306585]
[1748845134694,0.38402296,2486.7,2486.6,2.41293332]
[1748845134935,0.75904042,2486.7,2486.5,2.41298547]
[1748845135083,2.84600359,2487.0,2486.5,2.41298547]
[1748845135279,0.38402261,2486.9,2486.5,2.41298547]
[1748845135496,0.7590147,2486.8,2486.6,2.41293266]
[1748845135683,0.38402261,2486.7,2486.6,2.41293266]
[1748845135885,0.75901298,2486.7,2486.6,2.41293266]
[1748845136094,0.75901298,2486.7,2486.4,2.41312741]
[1748845136294,2.84600359,2487.0,2486.4,2.41312741]
[1748845136520,0.38410085,2486.9,2486.6,2.41287822]
[1748845136689,0.75912985,2486.8,2486.6,2.41287822]
[1748845137005,0.75912985,2486.7,2486.6,2.41287822]
[1748845137173,0.38410085,2486.7,2486.6,2.41287822]
[1748845137372,2.84600359,2487.0,2486.6,2.41287822]
[1748845137568,0.7592671,2486.9,2486.6,2.41287822]
[1748845137776,0.75924229,2486.8,2486.6,2.41287822]
[1748845137985,2.84600359,2487.0,2486.6,2.41287822]
[1748845138204,0.38408191,2486.9,2486.6,2.41287822]
[1748845138502,0.75912343,2486.8,2486.6,2.41287822]
[1748845138702,2.84600359,2487.0,2486.6,2.41287822]
[1748845138895,0.75932689,2486.9,2486.6,3.24017822]
[1748845139091,0.38417692,2486.8,2486.6,3.24017822]
[1748845139295,2.84600359,2487.0,2486.6,3.24017822]
[1748845139492,0.75932256,2486.9,2486.6,3.24017822]
[1748845139669,0.3841696,2486.8,2486.6,3.24017822]
[1748845139875,2.84600359,2487.0,2486.6,0.8273]
[1748845140074,0.75930307,2486.9,2486.6,0.8273]
[1748845140338,0.38416921,2486.8,2486.7,7.67183628]
[1748845140479,3.23821796,2487.7,2486.9,3.23994224]
[1748845140480,3.67230359,2487.7,2486.9,3.23994224]
[1748845140674,2.84600359,2487.5,2487.0,2.41246879]
[1748845140884,2.84600359,2487.3,2486.9,0.8273]
[1748845141107,2.84600359,2487.3,2487.0,2.41253992]
[1748845141325,3.39600359,2487.5,2487.1,2.41243794]
[1748845141596,0.75928642,2487.4,2487.1,2.41243794]
[1748845141834,3.39600359,2487.5,2487.1,2.41243794]
[1748845142130,0.384103,2487.4,2487.1,2.41243794]
[1748845142332,3.39600359,2487.5,2487.1,2.41243794]
[1748845142495,0.75907194,2487.4,2487.1,2.41243794]
[1748845142695,3.39600359,2487.5,2487.1,2.41243794]
[1748845143016,0.38400556,2487.4,2487.1,2.41243794]
[1748845143219,3.39600359,2487.5,2487.1,2.41243794]
[1748845143535,0.38389177,2487.4,2487.1,2.41243794]
[1748845143741,3.39600359,2487.5,2487.1,2.41243794]
[1748845144031,3.39600359,2487.5,2487.1,2.41243104]
[1748845144224,3.39600359,2487.5,2487.0,2.41251323]
[1748845144941,3.39600359,2487.5,2487.1,2.4124429]
[1748845145134,3.39600359,2487.5,2487.0,2.41249813]
[1748845145501,0.55,2487.3,2486.9,0.8273]
[1748845145700,2.84600359,2487.2,2487.0,2.41248482]
[1748845146136,2.84600359,2487.2,2486.9,3.23989537]
[1748845146626,2.84600359,2487.2,2487.0,2.41252757]
[1748845146818,2.84600359,2487.2,2486.9,3.23988729]
[1748845149340,2.84600359,2487.2,2486.9,2.41258729]
[1748845150033,2.84600359,2487.2,2486.7,11.1748257]
[1748845150262,2.84600359,2487.0,2486.8,2.41273008]
[1748845152732,2.84600359,2487.0,2486.7,11.17479691]
[1748845153450,2.84600359,2486.8,2486.2,0.8173]
[1748845153623,2.84600359,2486.8,2486.5,2.41302722]
[1748845153941,0.7712,2486.5,2485.9,1.9252]
[1748845154238,0.7712,2486.7,2486.2,2.41329924]
[1748845154441,3.22989544,2486.6,2486.2,2.41329924]
[1748845154644,2.84600359,2486.6,2486.2,2.41329924]
[1748845155148,2.84600359,2486.6,2486.0,2.41345798]
[1748845155149,2.84600359,2486.4,2486.0,2.41345798]
[1748845156147,2.84600359,2486.4,2486.1,2.41339598]
[1748845157042,2.84600359,2486.4,2486.0,2.4134806]
[1748845158233,2.84600359,2486.4,2486.1,2.41340003]
[1748845158950,3.18407472,2486.7,2486.3,3.17767525]
[1748845158951,0.38380038,2486.6,2486.3,3.17767525]
[1748845159149,5.25864627,2486.9,2486.4,2.41307598]
[1748845159335,0.38379004,2486.8,2486.3,3.17768766]
[1748845159534,0.758555,2486.7,2486.4,2.41311723]
[1748845159741,5.25864627,2486.9,2486.4,2.41311723]
[1748845160046,0.75852797,2486.8,2486.3,3.17771664]
[1748845160247,0.75852507,2486.7,2486.3,3.17771664]
[1748845160450,5.25868668,2486.9,2486.4,2.41307797]
[1748845160750,5.25868668,2486.9,2486.3,0.7645]
[1748845160751,2.84600359,2487.1,2486.6,2.41287286]
[1748845160916,0.75858314,2487.0,2486.6,2.41287286]
[1748845161118,0.38380894,2486.9,2486.5,2.412984]
[1748845161429,0.37479436,2487.0,2486.6,2.41292631]
[1748845161615,0.38385607,2486.9,2486.6,2.41292631]
[1748845161815,0.37478288,2487.0,2486.6,2.41292631]
[1748845162016,0.38385668,2486.9,2486.6,2.41292631]
[1748845162247,0.37478599,2487.0,2486.6,2.41292631]
[1748845162424,0.8231,2487.2,2486.8,2.41273612]
[1748845162751,0.75869523,2487.1,2486.7,2.41277535]
[1748845162916,3.23545644,2487.2,2486.7,2.41277535]
[1748845163130,0.75871957,2487.1,2486.7,2.41277535]
[1748845163318,3.23545644,2487.2,2486.7,2.41277535]
[1748845163623,0.38389929,2487.1,2486.7,2.41277535]
[1748845163842,2.84600359,2487.1,2486.7,2.41277535]
[1748845164240,0.38392265,2487.0,2486.7,2.41277535]
[1748845164441,2.84600359,2487.1,2486.7,2.41277535]
[1748845164636,0.38391276,2487.0,2486.7,2.41277535]
[1748845164837,2.84600359,2487.1,2486.7,2.41277535]
[1748845165155,0.38391805,2487.0,2486.7,2.41277535]
[1748845165358,2.84600359,2487.1,2486.7,2.41277535]
[1748845165653,0.38392478,2487.0,2486.7,2.41277535]
[1748845165834,2.84600359,2487.1,2486.7,2.41277535]
[1748845166028,0.38392669,2487.0,2486.8,2.41273923]
[1748845166328,2.84600359,2487.1,2486.8,2.41273923]
[1748845166518,0.3839208,2487.0,2486.8,2.41273923]
[1748845166714,2.84600359,2487.1,2486.8,2.41273923]
[1748845166916,0.38387587,2487.0,2486.8,2.41273923]
[1748845167151,2.84600359,2487.1,2486.8,2.41273923]
[1748845167349,2.84600359,2486.9,2486.6,2.41287354]
[1748845169050,3.60483186,2487.1,2486.8,2.41265772]
[1748845169218,0.38393915,2487.0,2486.8,2.41265772]
[1748845169420,0.8231,2487.2,2486.9,2.41257586]
[1748845169616,0.38392615,2487.1,2487.0,2.41254523]
[1748845169955,0.75883286,2487.4,2487.0,2.41254523]
[1748845170155,0.75879933,2487.3,2487.0,2.41254523]
[1748845170456,0.38392615,2487.2,2487.0,2.41254523]
[1748845170756,0.3748831,2487.3,2487.0,2.41254523]
[1748845170931,0.38398169,2487.2,2487.0,2.41254523]
[1748845171278,2.89188318,2487.6,2487.2,2.41235123]
[1748845171279,0.47985213,2487.6,2487.2,2.41235123]
[1748845171474,0.75895175,2487.5,2487.2,2.41235123]
[1748845171775,0.7589826,2487.4,2487.2,2.41235123]
[1748845171970,6.55242839,2487.7,2487.2,2.41235123]
[1748845172187,2.84600359,2487.5,2487.2,2.41235123]
[1748845172348,0.75896987,2487.4,2487.2,2.41235123]
[1748845172535,0.38402356,2487.3,2487.2,2.41235123]
[1748845172731,2.84600359,2487.5,2487.3,2.4121624]
[1748845172932,0.38406543,2487.4,2487.2,2.41229474]
[1748845173286,2.84600359,2487.5,2487.2,2.41229474]
[1748845174044,2.84600359,2487.5,2487.1,2.4123805]
[1748845174359,2.84600359,2487.5,2487.2,2.65354962]
[1748845175066,2.84600359,2487.5,2486.9,3.2003326]
[1748845175267,2.84600359,2487.5,2487.0,2.412496]
[1748845175682,2.84600359,2487.5,2487.1,2.41243113]
[1748845177182,5.25807593,2487.5,2487.0,2.41252753]
[1748845177343,2.84600359,2487.5,2487.0,2.41252753]
[1748845177680,0.3839987,2487.4,2487.0,2.41252753]
[1748845177972,2.84600359,2487.5,2487.0,2.41252753]
[1748845178179,2.84600359,2487.5,2487.1,2.41244351]
[1748845178477,2.84600359,2487.5,2487.0,2.41248565]
[1748845179463,2.84600359,2487.5,2487.1,2.41244557]
[1748845180095,2.84600359,2487.5,2487.0,2.4125044]
[1748845180476,2.84600359,2487.5,2487.1,2.41243595]
[1748845181965,2.84600359,2487.5,2487.0,2.4124977]
[1748845182165,2.84600359,2487.3,2487.0,2.4124977]
[1748845182923,2.84600359,2487.3,2486.9,3.20029278]
[1748845183124,2.84600359,2487.3,2487.0,2.41251908]
[1748845183265,0.7929,2487.4,2487.0,2.41254523]
[1748845183665,0.7929,2487.4,2486.7,3.16846872]
[1748845183666,5.25831093,2487.3,2486.7,3.16846872]
[1748845183906,2.84600359,2487.3,2486.7,8.7557]
[1748845184113,2.84600359,2487.3,2487.0,2.41254523]
[1748845184314,0.7929,2487.4,2486.7,8.7557]
[1748845184512,0.7929,2487.4,2486.7,3.16850605]
[1748845184714,0.7929,2487.4,2487.1,2.4123915]
[1748845185572,0.7929,2487.4,2487.2,2.41234228]
[1748845186603,2.84600359,2487.5,2487.3,2.41219865]
[1748845187099,0.38398662,2487.4,2487.3,2.41219865]
[1748845187921,0.7954,2487.6,2487.3,2.41219865]
[1748845188086,0.75883748,2487.5,2487.4,2.4121077]
[1748845188437,0.75896449,2487.5,2487.4,2.4121077]
[1748845188573,0.75896286,2487.5,2487.4,2.4121077]
[1748845188774,0.75895039,2487.5,2487.4,2.4121077]
[1748845189012,0.38394925,2487.5,2487.4,2.4121077]
[1748845189310,0.75894913,2487.5,2487.4,2.4121077]
[1748845189707,0.75914498,2487.5,2487.4,2.4121077]
[1748845190205,0.75927388,2487.5,2487.4,2.4121077]
[1748845190390,0.75927504,2487.5,2487.4,2.4121077]
[1748845190704,0.01,2487.9,2487.5,2.41205527]
[1748845191002,0.75963379,2487.8,2487.7,2.41179252]
[1748845191208,0.38429573,2487.8,2487.7,2.41179252]
[1748845192417,0.38417842,2487.8,2487.7,2.41179252]
[1748845192592,0.01,2487.9,2487.7,2.41179252]
[1748845194924,0.01,2487.9,2487.8,2.41176943]
[1748845195082,0.39386022,2487.9,2487.8,2.41176943]
[1748845195498,0.01,2487.9,2487.8,2.41176943]
[1748845196577,0.01,2487.9,2487.7,2.41184407]
[1748845196782,2.85600359,2487.9,2487.7,2.41184407]
[1748845197482,2.85600359,2487.9,2487.8,2.41176943]
[1748845197686,0.01,2487.9,2487.8,2.41176943]
[1748845200330,0.01,2487.9,2487.5,3.22034527]
[1748845200331,0.01,2487.9,2487.5,0.8083]
[1748845200481,0.01,2487.9,2487.8,2.41176943]
[1748845204533,0.01,2487.9,2487.8,3.17056943]
[1748845204707,0.01,2487.9,2487.8,11.17056943]
[1748845205222,0.01,2487.9,2487.8,13.72882104]
[1748845205428,0.01,2487.9,2487.8,14.24989098]
[1748845205628,0.01,2488.9,2488.8,2.41080038]
[1748845205825,0.01,2488.9,2488.8,3.23310038]
[1748845206201,0.01,2488.9,2488.8,2.41080038]
[1748845212145,2.84600359,2489.2,2488.8,2.41080038]
[1748845213241,0.8166,2489.5,2488.9,2.41069157]
[1748845213441,0.8166,2489.5,2489.1,2.41043742]
[1748845213656,0.8166,2489.5,2489.2,2.4103648]
[1748845214150,0.8077,2489.7,2489.4,2.41016822]
[1748845214459,3.51267026,2489.8,2489.5,0.24101682]
[1748845214660,2.84600359,2489.6,2489.2,2.41037458]
[1748845215012,2.84600359,2489.4,2489.1,2.41049434]
[1748845216056,0.8093,2489.5,2489.2,2.41032915]
[1748845216607,0.8093,2489.5,2489.3,2.4103074]
[1748845216813,2.84600359,2489.6,2489.3,2.4103074]
[1748845217067,2.84600359,2489.6,2489.0,0.8109]
[1748845217068,0.7687,2489.7,2489.4,2.41021729]
[1748845217210,2.84600359,2489.6,2489.2,2.41033989]
[1748845217410,2.84600359,2489.6,2489.3,2.41026165]
[1748845218239,0.8064,2489.3,2488.8,8.0]
[1748845218431,2.84600359,2489.2,2489.0,2.4105969]
[1748845218614,2.84600359,2489.2,2488.7,0.7954]
[1748845218615,0.8064,2489.5,2489.1,2.41045463]
[1748845218951,3.65240359,2489.5,2489.1,2.41045463]
[1748845219148,3.65240359,2489.5,2489.2,2.41040383]
[1748845219454,0.8064,2489.5,2489.2,2.41040383]
[1748845219618,3.65240359,2489.5,2489.2,2.41040383]
[1748845219818,3.65240359,2489.5,2489.1,3.23746312]
[1748845220134,4.32237026,2489.8,2489.4,2.41016984]
[1748845220549,2.84600359,2489.7,2489.4,2.41016984]
[1748845221423,2.84600359,2489.7,2488.8,8.0]
[1748845221624,2.84600359,2489.5,2489.1,3.16734235]
[1748845221824,2.84600359,2489.3,2488.9,10.41070352]
[1748845222048,2.84600359,2489.3,2489.0,9.9]
[1748845222352,2.84600359,2489.3,2489.0,4.31059472]
[1748845222727,2.84600359,2489.3,2489.0,4.31057974]
[1748845222922,0.8056,2489.4,2489.1,2.41042084]
[1748845223140,0.8056,2489.4,2489.1,2.41050982]
[1748845223658,0.8056,2489.4,2489.0,4.31057974]
[1748845224112,0.8056,2489.4,2489.1,2.41050982]
[1748845224519,0.8056,2489.4,2489.0,4.31056731]
[1748845224820,0.8056,2489.4,2489.1,2.4105079]
[1748845226953,0.8056,2489.4,2489.0,4.31055733]
[1748845227149,0.8056,2489.4,2489.1,2.4105015]
[1748845227557,0.8056,2489.4,2489.0,4.31056158]
[1748845227751,0.8056,2489.4,2489.1,2.41047859]
[1748845228758,0.8056,2489.4,2489.0,4.31055798]
[1748845229819,2.84600359,2489.3,2489.0,1.9]
[1748845230058,2.84600359,2489.3,2489.0,4.31060188]
[1748845230351,2.84600359,2489.3,2488.5,2.41107792]
[1748845230352,2.84600359,2489.1,2488.6,0.7664]
[1748845230551,2.84600359,2488.9,2488.7,10.4108856]
[1748845230962,2.84600359,2489.1,2488.8,10.41080038]
[1748845231144,2.84600359,2489.1,2488.9,2.41069753]
[1748845232437,0.8056,2489.4,2488.8,2.41077892]
[1748845232438,3.22970545,2489.3,2488.8,2.41077892]
[1748845232622,2.84600359,2489.3,2488.8,2.41077892]
[1748845233163,2.84600359,2489.3,2488.9,2.41062756]
[1748845233662,0.38415146,2489.2,2488.8,2.41075855]
[1748845233865,2.84600359,2489.3,2488.8,2.41075855]
[1748845234045,0.75971049,2489.2,2488.9,2.41070036]
[1748845234251,2.84600359,2489.3,2488.9,2.41070036]
[1748845234451,2.84600359,2489.3,2488.8,10.41079773]
[1748845234452,0.38428157,2489.2,2489.1,2.41050982]
[1748845234853,0.47930058,2489.6,2489.4,2.41018862]
[1748845235175,0.76042288,2489.5,2489.4,2.41013318]
[1748845235675,0.76042288,2489.5,2489.3,2.41024007]
[1748845235844,0.38483586,2489.4,2489.3,2.41024007]
[1748845236181,0.76063412,2489.4,2489.3,2.41024007]
[1748845236390,0.66666667,2489.8,2489.7,2.4099289]
[1748845237150,0.66666667,2489.8,2489.5,2.41009755]
[1748845237349,0.66666667,2489.8,2489.7,2.4099289]
[1748845238087,0.01,2489.9,2489.7,2.4099289]
[1748845238996,0.01,2489.9,2489.6,8.0]
[1748845240182,0.01,2489.9,2489.7,2.40990229]
[1748845240894,0.01,2489.9,2489.5,2.41009525]
[1748845241183,3.59720359,2489.7,2489.3,2.4102615]
[1748845241681,3.59720359,2489.7,2489.0,3.21857263]
[1748845241887,3.59720359,2489.7,2489.2,2.4104084]
[1748845241888,2.84600359,2489.5,2489.2,2.4104084]
[1748845242390,2.84600359,2489.5,2489.3,2.41030253]
[1748845242594,3.59720359,2489.7,2489.4,2.41021274]
[1748845242799,3.59720359,2489.7,2489.3,10.41029152]
[1748845243467,3.59720359,2489.7,2489.4,2.41020681]
[1748845243668,7.74520359,2489.7,2489.4,2.41020681]
[1748845243869,7.74520359,2489.7,2489.3,10.41027214]
[1748845244198,7.74520359,2489.7,2489.4,2.41021615]
[1748845244903,7.74520359,2489.7,2489.3,2.41027754]
[1748845245193,7.74520359,2489.7,2489.4,2.41020818]
[1748845245797,7.74520359,2489.7,2489.3,2.41030653]
[1748845246097,7.74520359,2489.7,2489.3,10.41027674]
[1748845246430,7.74520359,2489.7,2489.3,2.41027674]
[1748845248378,0.37585041,2489.6,2489.3,2.41027674]
[1748845248590,7.74520359,2489.7,2489.3,2.41027674]
[1748845248894,0.3758493,2489.6,2489.4,2.4102016]
[1748845249059,3.59720359,2489.7,2489.3,2.41030741]
[1748845249258,4.52384756,2489.6,2489.4,2.41016719]
[1748845249479,4.148,2489.6,2489.2,8.0]
[1748845249773,4.148,2489.6,2489.2,2.41041298]
[1748845249987,4.148,2489.6,2489.3,2.41029842]
[1748845252067,4.148,2489.6,2489.2,2.41037604]
[1748845252266,4.148,2489.6,2489.1,8.0]
[1748845252666,4.148,2489.6,2489.2,2.41035152]
[1748845253374,0.37580869,2489.5,2489.3,2.41030681]
[1748845253576,4.148,2489.6,2489.3,2.41030681]
[1748845254106,4.148,2489.6,2489.2,2.41036408]
[1748845255704,4.148,2489.6,2489.3,2.4103032]
[1748845255899,4.148,2489.5,2489.2,2.41038082]
[1748845256109,4.148,2489.5,2489.3,2.41031615]
[1748845256990,4.148,2489.5,2489.2,2.41036186]
[1748845260168,4.148,2489.5,2489.1,2.41045636]
[1748845260372,3.99783549,2489.4,2488.7,0.7577]
[1748845260592,2.84600359,2489.2,2488.8,10.41078792]
[1748845260792,6.99300359,2489.2,2488.8,10.41078792]
[1748845261269,6.99300359,2489.2,2488.9,2.41068712]
[1748845261615,6.99300359,2489.2,2488.9,2.41069244]
[1748845262024,6.99300359,2489.2,2488.8,8.0]
[1748845262231,6.99300359,2489.2,2488.9,2.41061739]
[1748845262384,4.147,2489.2,2488.9,2.41061739]
[1748845263110,4.147,2489.2,2489.0,2.41060224]
[1748845263323,4.147,2489.2,2489.1,2.41050982]
[1748845264930,4.147,2489.2,2489.0,2.41056014]
[1748845269546,4.147,2489.2,2489.1,2.41050982]
[1748845269948,4.147,2489.4,2489.2,2.41041271]
[1748845270152,0.76064609,2489.3,2489.2,2.41041271]
[1748845270443,0.76064609,2489.3,2489.1,2.41048877]
[1748845270608,4.147,2489.4,2489.1,2.41048877]
[1748845270809,0.76076458,2489.3,2489.1,2.41048877]
[1748845271011,4.147,2489.4,2489.1,2.41048877]
[1748845271327,0.3848247,2489.3,2489.1,2.41048877]
[1748845271531,6.99300359,2489.4,2488.9,4.75]
[1748845271729,2.84600359,2489.2,2488.9,4.75]
[1748845272032,2.84600359,2489.2,2488.9,7.16064379]
[1748845272521,0.8193,2489.3,2489.0,2.41059496]
[1748845272851,0.3848913,2489.2,2488.9,7.16065422]
[1748845273043,0.8193,2489.3,2489.0,2.41060645]